bitfinex/quotes_BTCUSD_20241027
["timestamp","ask_amount","ask_price","bid_price","bid_amount"]
[1730048589852,0.85210855,67829.0,67828.0,0.00158807]
[1730048590090,0.78576205,67829.0,67828.0,0.00158807]
[1730048590304,0.8299991,67829.0,67828.0,0.00158807]
[1730048591578,0.65313937,67829.0,67828.0,0.00158807]
[1730048591797,0.65313937,67829.0,67828.0,0.09758807]
[1730048592220,0.65313937,67829.0,67828.0,0.1060369]
[1730048594439,0.64611593,67829.0,67828.0,0.1060369]
[1730048594856,0.64611593,67829.0,67828.0,0.0100369]
[1730048595939,0.79661974,67829.0,67828.0,0.0100369]
[1730048596151,0.79861974,67829.0,67828.0,0.0100369]
[1730048597773,0.79661974,67829.0,67828.0,0.0100369]
[1730048598436,0.64611593,67829.0,67828.0,0.0100369]
[1730048600014,0.64811593,67829.0,67828.0,0.0100369]
[1730048600752,0.64611593,67829.0,67828.0,0.0100369]
[1730048600967,0.64811593,67829.0,67828.0,0.0100369]
[1730048601593,0.64611593,67829.0,67828.0,0.0100369]
[1730048602249,0.66911593,67829.0,67828.0,0.0100369]
[1730048602451,0.66911593,67829.0,67828.0,0.00158807]
[1730048603511,0.81961974,67829.0,67828.0,0.00158807]
[1730048605173,0.86385816,67829.0,67828.0,0.00158807]
[1730048605393,0.81961974,67829.0,67828.0,0.00158807]
[1730048607283,0.88597737,67829.0,67828.0,0.00158807]
[1730048609321,0.73747356,67829.0,67828.0,0.00158807]
[1730048609544,0.82999335,67829.0,67828.0,0.00158807]
[1730048609768,0.76363572,67829.0,67828.0,0.00158807]
[1730048610462,0.82999335,67829.0,67828.0,0.00158807]
[1730048611998,0.82799335,67829.0,67828.0,0.00158807]
[1730048612651,0.97849716,67829.0,67828.0,0.00158807]
[1730048614215,0.97850569,67829.0,67828.0,0.00158807]
[1730048614660,0.91213953,67829.0,67828.0,0.00158807]
[1730048615101,0.97850702,67829.0,67828.0,0.00158807]
[1730048618027,0.91213953,67829.0,67828.0,0.00158807]
[1730048618455,0.97851619,67829.0,67828.0,0.00158807]
[1730048623290,0.97829273,67829.0,67828.0,0.00158807]
[1730048624623,0.97829232,67829.0,67828.0,0.00158807]
[1730048628599,0.88577253,67829.0,67828.0,0.00158807]
[1730048628814,0.82978851,67829.0,67828.0,0.00158807]
[1730048629455,0.82979025,67829.0,67828.0,0.00158807]
[1730048631463,0.82446348,67829.0,67828.0,0.00158807]
[1730048632566,1.22195703,67829.0,67828.0,0.00158807]
[1730048632784,0.91016951,67829.0,67828.0,0.00158807]
[1730048632994,1.02079949,67829.0,67828.0,0.00158807]
[1730048634325,1.02080803,67829.0,67828.0,0.00158807]
[1730048634548,1.27080803,67829.0,67828.0,0.00158807]
[1730048634982,1.16016951,67829.0,67828.0,0.00158807]
[1730048635450,1.27080671,67829.0,67828.0,0.00158807]
[1730048637899,1.16016951,67829.0,67828.0,0.00158807]
[1730048639443,1.16016951,67829.0,67818.0,0.001644]
[1730048639444,0.012,67819.0,67818.0,0.001644]
[1730048639664,0.81995474,67819.0,67818.0,0.001644]
[1730048639864,0.86420984,67819.0,67818.0,0.001644]
[1730048640069,0.81995474,67819.0,67818.0,0.001644]
[1730048641136,0.86419972,67819.0,67818.0,0.001644]
[1730048641373,0.86619972,67819.0,67818.0,0.001644]
[1730048641598,0.94742929,67819.0,67818.0,0.001644]
[1730048641851,0.94542929,67819.0,67818.0,0.001644]
[1730048642061,0.94543106,67819.0,67818.0,0.001644]
[1730048642295,0.90118431,67819.0,67818.0,0.001644]
[1730048642501,0.96480326,67819.0,67818.0,0.001644]
[1730048643166,0.96479486,67819.0,67818.0,0.001644]
[1730048643584,0.96279486,67819.0,67818.0,0.001644]
[1730048644017,0.96479486,67819.0,67818.0,0.001644]
[1730048644953,0.96279486,67819.0,67818.0,0.001644]
[1730048645148,0.92056739,67819.0,67818.0,0.001644]
[1730048645578,0.96479486,67819.0,67818.0,0.001644]
[1730048645794,0.92056739,67819.0,67818.0,0.001644]
[1730048646015,0.96479486,67819.0,67818.0,0.001644]
[1730048646230,0.92056739,67819.0,67818.0,0.001644]
[1730048646697,0.91856739,67819.0,67818.0,0.001644]
[1730048647147,0.96279486,67819.0,67818.0,0.001644]
[1730048647754,0.91856739,67819.0,67818.0,0.001644]
[1730048648175,0.9151491,67819.0,67818.0,0.001644]
[1730048648414,0.73010952,67819.0,67818.0,0.001644]
[1730048648641,0.9151491,67819.0,67818.0,0.001644]
[1730048649516,0.98150291,67819.0,67818.0,0.001644]
[1730048649928,0.9151491,67819.0,67818.0,0.001644]
[1730048650597,0.98143239,67819.0,67818.0,0.001644]
[1730048650830,0.9151491,67819.0,67818.0,0.001644]
[1730048652148,0.98142604,67819.0,67818.0,0.001644]
[1730048653046,0.98342604,67819.0,67818.0,0.001644]
[1730048653516,0.98142604,67819.0,67818.0,0.001644]
[1730048654397,0.9151491,67819.0,67818.0,0.001644]
[1730048655108,0.98342604,67819.0,67818.0,0.001644]
[1730048655334,0.9171491,67819.0,67818.0,0.001644]
[1730048656166,0.9151491,67819.0,67818.0,0.001644]
[1730048656588,0.90224934,67819.0,67818.0,0.001644]
[1730048657073,0.96850226,67819.0,67818.0,0.001644]
[1730048657294,0.90224934,67819.0,67818.0,0.001644]
[1730048657738,0.96850226,67819.0,67818.0,0.001644]
[1730048657962,0.90224934,67819.0,67818.0,0.001644]
[1730048659104,0.71720976,67819.0,67818.0,0.001644]
[1730048659314,0.90224934,67819.0,67818.0,0.001644]
[1730048659527,0.94641332,67819.0,67818.0,0.001644]
[1730048659773,0.96951303,67819.0,67818.0,0.001644]
[1730048660625,0.70524388,67819.0,67818.0,0.001644]
[1730048660857,0.75159969,67819.0,67818.0,0.001644]
[1730048661550,0.6590799,67819.0,67818.0,0.001644]
[1730048661755,0.75159969,67819.0,67818.0,0.001644]
[1730048663294,0.75359969,67819.0,67818.0,0.001644]
[1730048664409,0.75159969,67819.0,67818.0,0.001644]
[1730048664618,0.74583299,67819.0,67818.0,0.001644]
[1730048664855,0.74783299,67819.0,67818.0,0.001644]
[1730048666435,0.8983368,67819.0,67818.0,0.001644]
[1730048666652,1.03502416,67819.0,67818.0,0.001644]
[1730048668239,0.99085659,67819.0,67818.0,0.001644]
[1730048668443,1.03502416,67819.0,67818.0,0.001644]
[1730048668688,0.99085659,67819.0,67818.0,0.001644]
[1730048669579,1.05710795,67819.0,67818.0,0.001644]
[1730048670703,0.99085659,67819.0,67818.0,0.001644]
[1730048671162,1.07919173,67819.0,67818.0,0.001644]
[1730048673005,1.07630078,67819.0,67818.0,0.001644]
[1730048673467,0.98796564,67819.0,67818.0,0.001644]
[1730048673679,1.0763462,67819.0,67818.0,0.001644]
[1730048674325,1.0743462,67819.0,67818.0,0.001644]
[1730048674566,0.98596564,67819.0,67818.0,0.001644]
[1730048675268,0.98796564,67819.0,67818.0,0.001644]
[1730048676422,1.25386362,67819.0,67818.0,0.001644]
[1730048676659,1.09846362,67819.0,67818.0,0.001644]
[1730048676877,1.09646362,67819.0,67818.0,0.001644]
[1730048678443,0.98596564,67819.0,67818.0,0.001644]
[1730048678673,0.65242225,67819.0,67818.0,0.001644]
[1730048678922,0.74494204,67819.0,67818.0,0.001644]
[1730048679177,0.74294204,67819.0,67818.0,0.001644]
[1730048679659,0.83546183,67819.0,67818.0,0.001644]
[1730048679896,0.83746183,67819.0,67818.0,0.001644]
[1730048680634,1.09852805,67819.0,67818.0,0.001644]
[1730048681086,1.09587538,67819.0,67818.0,0.001644]
[1730048682028,1.09387538,67819.0,67818.0,0.001644]
[1730048682249,0.94337157,67819.0,67818.0,0.001644]
[1730048682471,0.83280916,67819.0,67818.0,0.001644]
[1730048683360,0.94342291,67819.0,67818.0,0.001644]
[1730048683581,0.83280916,67819.0,67818.0,0.001644]
[1730048683801,0.98331297,67819.0,67818.0,0.001644]
[1730048684013,0.98531297,67819.0,67818.0,0.001644]
[1730048684717,0.98331297,67819.0,67818.0,0.001644]
[1730048686271,0.83280916,67819.0,67818.0,0.001644]
[1730048688801,0.74028937,67819.0,67818.0,0.001644]
[1730048689251,0.74228937,67819.0,67818.0,0.001644]
[1730048689949,0.74028937,67819.0,67818.0,0.001644]
[1730048692668,0.74228937,67819.0,67818.0,0.001644]
[1730048692874,0.89279318,67819.0,67818.0,0.001644]
[1730048694252,0.98531297,67819.0,67818.0,0.001644]
[1730048694682,0.98331297,67819.0,67818.0,0.001644]
[1730048695340,0.89079318,67819.0,67818.0,0.001644]
[1730048696013,0.98331297,67819.0,67818.0,0.001644]
[1730048697327,0.98531297,67819.0,67818.0,0.001644]
[1730048698637,0.74228937,67819.0,67818.0,0.001644]
[1730048698847,0.74028937,67819.0,67818.0,0.001644]
[1730048700648,0.83280916,67819.0,67818.0,0.001644]
[1730048700864,0.83480916,67819.0,67818.0,0.001644]
[1730048703732,0.96748406,67819.0,67818.0,0.001644]
[1730048703946,1.11798787,67819.0,67818.0,0.001644]
[1730048704597,1.11598787,67819.0,67818.0,0.001644]
[1730048704805,1.11798787,67819.0,67818.0,0.001644]
[1730048705067,1.11598787,67819.0,67818.0,0.001644]
[1730048705314,0.180481,67805.0,67804.0,0.22159355]
[1730048705555,0.79370029,67805.0,67804.0,0.22159355]
[1730048705787,0.259483,67804.0,67801.0,0.0777]
[1730048706020,0.6271485,67804.0,67801.0,0.0777]
[1730048706227,0.64928958,67804.0,67801.0,0.0777]
[1730048706663,0.71333426,67804.0,67801.0,0.0777]
[1730048706855,0.7394282,67804.0,67801.0,0.0777]
[1730048707082,0.64490841,67804.0,67801.0,0.0777]
[1730048707309,0.80383019,67804.0,67801.0,0.0777]
[1730048707539,0.64490841,67804.0,67801.0,0.0777]
[1730048707742,0.58086373,67804.0,67801.0,0.0777]
[1730048708832,0.67338352,67804.0,67801.0,0.0777]
[1730048709083,0.58086373,67804.0,67801.0,0.0777]
[1730048709312,0.62513109,67804.0,67801.0,0.0777]
[1730048709523,0.67338352,67804.0,67801.0,0.0777]
[1730048713045,0.67538352,67804.0,67801.0,0.0777]
[1730048713473,0.82588733,67804.0,67801.0,0.0777]
[1730048714113,0.82292838,67804.0,67801.0,0.0777]
[1730048715057,0.67242457,67804.0,67801.0,0.0777]
[1730048715513,0.69542457,67804.0,67801.0,0.0777]
[1730048715717,0.69342457,67804.0,67801.0,0.0777]
[1730048716345,0.60090478,67804.0,67801.0,0.0777]
[1730048716552,0.69342457,67804.0,67801.0,0.0777]
[1730048719989,0.71652644,67804.0,67801.0,0.0777]
[1730048720578,0.69352644,67804.0,67801.0,0.0777]
[1730048721254,0.69352644,67804.0,67803.0,2.39328277]
[1730048721713,0.69352644,67804.0,67803.0,2.40153288]
[1730048725690,0.69339535,67804.0,67803.0,2.40153288]
[1730048729968,0.69539535,67804.0,67803.0,2.40153288]
[1730048730637,0.69339535,67804.0,67803.0,2.40153288]
[1730048731056,0.69539535,67804.0,67803.0,2.40153288]
[1730048731477,0.60087556,67804.0,67803.0,2.40153288]
[1730048731702,0.69339535,67804.0,67803.0,2.40153288]
[1730048731889,0.69339535,67804.0,67803.0,2.40369846]
[1730048733702,0.69539535,67804.0,67803.0,2.40369846]
[1730048733922,0.69423459,67804.0,67803.0,2.40369846]
[1730048737172,0.8447384,67804.0,67803.0,2.40369846]
[1730048738424,0.69423459,67804.0,67803.0,2.40369846]
[1730048738971,0.71723459,67804.0,67803.0,2.40369846]
[1730048742226,0.76147902,67804.0,67803.0,2.40369846]
[1730048745279,0.76230202,67804.0,67803.0,2.40369846]
[1730048746534,0.71805759,67804.0,67803.0,2.40369846]
[1730048746963,0.76233191,67804.0,67803.0,2.40369846]
[1730048748227,0.71805759,67804.0,67803.0,2.40369846]
[1730048749290,0.6255378,67804.0,67803.0,2.40369846]
[1730048750218,0.69190445,67804.0,67803.0,2.40369846]
[1730048750902,0.66890445,67804.0,67803.0,2.40369846]
[1730048751178,0.66890445,67804.0,67803.0,2.58199846]
[1730048751179,0.64183288,67804.0,67803.0,2.58199846]
[1730048751382,0.6025378,67804.0,67803.0,2.58199846]
[1730048751800,0.5925378,67804.0,67803.0,2.58199846]
[1730048751998,0.5905378,67804.0,67803.0,2.58199846]
[1730048760147,0.5905378,67804.0,67803.0,2.40369846]
[1730048760148,0.73732799,67804.0,67803.0,2.40369846]
[1730048760352,0.74232799,67804.0,67803.0,2.40369846]
[1730048760569,0.78661104,67804.0,67803.0,2.40369846]
[1730048761678,0.64482085,67804.0,67803.0,2.40369846]
[1730048761909,0.6005378,67804.0,67803.0,2.40369846]
[1730048762133,0.6025378,67804.0,67803.0,2.40369846]
[1730048763722,0.64682016,67804.0,67803.0,2.40369846]
[1730048764740,0.73933995,67804.0,67803.0,2.40369846]
[1730048764979,0.69505759,67804.0,67803.0,2.40369846]
[1730048765165,0.73933986,67804.0,67803.0,2.40369846]
[1730048765893,0.69505759,67804.0,67803.0,2.40369846]
[1730048766139,0.69305759,67804.0,67803.0,2.40369846]
[1730048766863,0.69305759,67804.0,67803.0,2.57659846]
[1730048768436,0.68805759,67804.0,67803.0,2.57659846]
[1730048769162,0.68305759,67804.0,67803.0,2.57659846]
[1730048771076,0.68305759,67804.0,67803.0,2.57659846]
[1730048772540,0.5905378,67804.0,67803.0,2.57659846]
[1730048776437,0.5905378,67804.0,67803.0,2.57457111]
[1730048779144,0.5905378,67804.0,67803.0,2.47847111]
[1730048779145,0.68505759,67804.0,67803.0,2.47847111]
[1730048781741,0.68305759,67804.0,67803.0,2.47847111]
[1730048789688,0.72734169,67804.0,67803.0,2.47847111]
[1730048791236,0.68305759,67804.0,67803.0,2.47847111]
[1730048791452,0.68505759,67804.0,67803.0,2.47847111]
[1730048791667,0.72934169,67804.0,67803.0,2.47847111]
[1730048793275,0.72934169,67804.0,67803.0,2.40167111]
[1730048793990,0.73434169,67804.0,67803.0,2.40167111]
[1730048794442,0.69005759,67804.0,67803.0,2.40167111]
[1730048794666,0.68805759,67804.0,67803.0,2.40167111]
[1730048796048,0.69005759,67804.0,67803.0,2.40167111]
[1730048799433,0.73434743,67804.0,67803.0,2.40167111]
[1730048799895,0.69005759,67804.0,67803.0,2.40167111]
[1730048800306,0.68805759,67804.0,67803.0,2.40167111]
[1730048802068,0.75449686,67804.0,67803.0,2.40167111]
[1730048802524,0.66197707,67804.0,67803.0,2.40167111]
[1730048802737,0.63983114,67804.0,67803.0,2.40167111]
[1730048802954,0.5955378,67804.0,67803.0,2.40167111]
[1730048804025,0.66197707,67804.0,67803.0,2.40167111]
[1730048804231,0.5955378,67804.0,67803.0,2.40167111]
[1730048807674,0.68805759,67804.0,67803.0,2.40167111]
[1730048809484,0.73435215,67804.0,67803.0,2.40167111]
[1730048809696,0.69005759,67804.0,67803.0,2.40167111]
[1730048810561,0.73435233,67804.0,67803.0,2.40167111]
[1730048810974,0.73235233,67804.0,67803.0,2.40167111]
[1730048812710,0.68805759,67804.0,67803.0,2.40167111]
[1730048813123,0.73235262,67804.0,67803.0,2.40167111]
[1730048813348,0.68805759,67804.0,67803.0,2.40167111]
[1730048814417,0.73235253,67804.0,67803.0,2.40167111]
[1730048817762,0.63983274,67804.0,67803.0,2.40167111]
[1730048818827,0.5905378,67804.0,67803.0,2.40167111]
[1730048821830,0.5905378,67804.0,67803.0,2.48117111]
[1730048828999,0.4905378,67804.0,67803.0,2.48117111]
[1730048833339,0.4905378,67804.0,67803.0,2.48439975]
[1730048833970,0.58305759,67804.0,67803.0,2.40489975]
[1730048834215,0.58505759,67804.0,67803.0,2.40489975]
[1730048834424,0.62934837,67804.0,67803.0,2.40489975]
[1730048835095,0.58505759,67804.0,67803.0,2.40489975]
[1730048835353,0.62934837,67804.0,67803.0,2.40489975]
[1730048835784,0.72686816,67804.0,67803.0,2.40489975]
[1730048836050,0.77277738,67804.0,67803.0,2.40489975]
[1730048836754,0.67825759,67804.0,67803.0,2.40489975]
[1730048836967,0.77277738,67804.0,67803.0,2.40489975]
[1730048837188,0.68025759,67804.0,67803.0,2.40489975]
[1730048837425,0.67825759,67804.0,67803.0,2.40489975]
[1730048837645,0.68025759,67804.0,67803.0,2.40489975]
[1730048838095,0.74669376,67804.0,67803.0,2.40489975]
[1730048838511,0.83921355,67804.0,67803.0,2.40489975]
[1730048838735,0.74669376,67804.0,67803.0,2.40489975]
[1730048839632,0.76969376,67804.0,67803.0,2.40489975]
[1730048840053,0.70325759,67804.0,67803.0,2.40489975]
[1730048840710,0.79577738,67804.0,67803.0,2.40489975]
[1730048840918,0.70325759,67804.0,67803.0,2.40489975]
[1730048841349,0.79577738,67804.0,67803.0,2.40489975]
[1730048841568,0.86221244,67804.0,67803.0,2.40479806]
[1730048841781,0.76969108,67804.0,67803.0,2.40479806]
[1730048842000,0.86221087,67804.0,67803.0,2.40479806]
[1730048842420,0.76969108,67804.0,67803.0,2.40479806]
[1730048843679,0.76769108,67804.0,67803.0,2.40479806]
[1730048844414,0.76969108,67804.0,67803.0,2.40479806]
[1730048846179,0.86221087,67804.0,67803.0,2.40479806]
[1730048846395,0.76969108,67804.0,67803.0,2.40479806]
[1730048846624,0.86220515,67804.0,67803.0,2.40479806]
[1730048847107,0.76968536,67804.0,67803.0,2.40479806]
[1730048848035,0.86220515,67804.0,67803.0,2.40479806]
[1730048848382,0.76968536,67804.0,67803.0,2.40479806]
[1730048849579,0.76768536,67804.0,67803.0,2.40479806]
[1730048850452,0.91818917,67804.0,67803.0,2.40479806]
[1730048850658,0.92040213,67804.0,67803.0,2.40479806]
[1730048851288,0.85397436,67804.0,67803.0,2.40479806]
[1730048851527,0.94254473,67804.0,67803.0,2.40479806]
[1730048851728,0.85397436,67804.0,67803.0,2.40479806]
[1730048852019,0.94649415,67804.0,67803.0,2.40479806]
[1730048852941,1.03506452,67804.0,67803.0,2.40479806]
[1730048853443,0.70347055,67804.0,67803.0,2.40479806]
[1730048854776,0.79599034,67804.0,67803.0,2.40479806]
[1730048855223,0.70347055,67804.0,67803.0,2.40479806]
[1730048855451,0.79599034,67804.0,67803.0,2.40479806]
[1730048855665,0.70347055,67804.0,67803.0,2.40479806]
[1730048856095,0.94649415,67804.0,67803.0,2.40479806]
[1730048856309,1.0350459,67804.0,67803.0,2.40479806]
[1730048856520,0.94649415,67804.0,67803.0,2.40479806]
[1730048856958,1.13504256,67804.0,67803.0,2.40479806]
[1730048857413,1.04649415,67804.0,67803.0,2.40479806]
[1730048859012,1.07391013,67804.0,67803.0,2.40479806]
[1730048859231,0.97939034,67804.0,67803.0,2.40479806]
[1730048859443,1.11221796,67804.0,67803.0,2.40479806]
[1730048859653,0.97939034,67804.0,67803.0,2.40479806]
[1730048865031,1.18248702,67804.0,67803.0,2.31630706]
[1730048865269,1.12989415,67804.0,67803.0,2.28681006]
[1730048865506,1.12989415,67804.0,67803.0,2.08301161]
[1730048865766,1.22241394,67804.0,67803.0,2.02401761]
[1730048866500,1.3108765,67804.0,67803.0,1.97185364]
[1730048866729,1.288747,67804.0,67803.0,1.34504647]
[1730048869245,1.19622721,67804.0,67803.0,1.34504647]
[1730048869489,1.0457234,67804.0,67803.0,1.34504647]
[1730048870676,0.97939034,67804.0,67803.0,1.34504647]
[1730048870908,0.88887055,67804.0,67803.0,1.34504647]
[1730048871141,0.98139034,67804.0,67803.0,1.34504647]
[1730048874046,0.97939034,67804.0,67803.0,1.34504647]
[1730048874776,1.12989415,67804.0,67803.0,1.34504647]
[1730048875009,0.97939034,67804.0,67803.0,1.34504647]
[1730048875483,1.0457234,67804.0,67803.0,1.34504647]
[1730048875716,1.0477234,67804.0,67803.0,1.34504647]
[1730048875956,0.95520361,67804.0,67803.0,1.34504647]
[1730048876191,0.9693234,67804.0,67803.0,1.34504647]
[1730048876718,0.9914529,67804.0,67803.0,1.34504647]
[1730048876965,1.01356723,67804.0,67803.0,1.34504647]
[1730048881760,1.01351119,67804.0,67803.0,1.34504647]
[1730048881968,0.92331119,67804.0,67803.0,1.34504647]
[1730048882177,0.8307914,67804.0,67803.0,1.34504647]
[1730048882899,0.69116851,67804.0,67803.0,1.34504647]
[1730048883125,0.60275076,67804.0,67803.0,1.34504647]
[1730048883337,0.64895581,67804.0,67803.0,1.34504647]
[1730048883554,0.60475076,67804.0,67803.0,1.34504647]
[1730048884666,0.71748902,67804.0,67803.0,1.34504647]
[1730048884896,0.71748945,67804.0,67803.0,1.34504647]
[1730048885974,0.62775119,67804.0,67803.0,1.34504647]
[1730048886409,0.62775119,67804.0,67803.0,1.52134647]
[1730048886410,0.72027098,67804.0,67803.0,1.52134647]
[1730048888434,0.71805759,67804.0,67803.0,1.52134647]
[1730048888647,0.72027098,67804.0,67803.0,1.52134647]
[1730048891095,0.78658065,67804.0,67803.0,1.52134647]
[1730048891529,0.72027098,67804.0,67803.0,1.52134647]
[1730048891740,0.78658065,67804.0,67803.0,1.52134647]
[1730048892358,0.72027098,67804.0,67803.0,1.52134647]
[1730048892563,0.78658065,67804.0,67803.0,1.52134647]
[1730048897652,0.72027098,67804.0,67803.0,1.52134647]
[1730048897879,0.71827098,67804.0,67803.0,1.52134647]
[1730048898109,0.72027098,67804.0,67803.0,1.34504647]
[1730048898624,0.71827098,67804.0,67803.0,1.34504647]
[1730048899099,0.72027098,67804.0,67803.0,1.34504647]
[1730048899322,0.95926426,67804.0,67803.0,1.34504647]
[1730048899549,0.87077479,67804.0,67803.0,1.34504647]
[1730048899761,0.98138308,67804.0,67803.0,1.34504647]
[1730048900038,0.97716969,67804.0,67803.0,1.34504647]
[1730048900280,0.71827058,67804.0,67803.0,1.34504647]
[1730048900502,0.80676615,67804.0,67803.0,1.34504647]
[1730048900728,0.72027058,67804.0,67803.0,1.34504647]
[1730048900955,0.62575079,67804.0,67803.0,1.44294647]
[1730048901178,0.71827058,67804.0,67803.0,1.44294647]
[1730048901404,0.78464479,67804.0,67803.0,1.44294647]
[1730048901642,0.78664509,67804.0,67803.0,1.44294647]
[1730048901847,0.78664509,67804.0,67803.0,1.43634236]
[1730048902124,0.78664509,67804.0,67803.0,1.4419331]
[1730048903554,0.7844318,67804.0,67803.0,1.4419331]
[1730048903780,0.72027088,67804.0,67803.0,1.3440331]
[1730048904469,0.78664922,67804.0,67803.0,1.3440331]
[1730048905181,0.71805759,67804.0,67803.0,1.3440331]
[1730048905442,0.78464993,67804.0,67803.0,1.3440331]
[1730048906537,0.80677071,67804.0,67803.0,1.3440331]
[1730048906790,0.80877071,67804.0,67803.0,1.3440331]
[1730048907015,0.72027088,67804.0,67803.0,1.3440331]
[1730048907808,0.80877071,67804.0,67803.0,1.3440331]
[1730048908490,0.71827088,67804.0,67803.0,1.3440331]
[1730048908724,0.72027088,67804.0,67803.0,1.3440331]
[1730048908960,0.80877071,67804.0,67803.0,1.3440331]
[1730048911996,0.80877071,67804.0,67803.0,1.34186752]
[1730048913053,0.80233333,67804.0,67803.0,1.34186752]
[1730048913263,0.80033333,67804.0,67803.0,1.34186752]
[1730048913485,0.80233333,67804.0,67803.0,1.34186752]
[1730048914153,0.72027088,67804.0,67803.0,1.34186752]
[1730048915439,0.83087917,67804.0,67803.0,1.34186752]
[1730048915851,0.83092102,67804.0,67803.0,1.34474643]
[1730048916478,0.72027088,67804.0,67803.0,1.34474643]
[1730048916683,0.83092102,67804.0,67803.0,1.34474643]
[1730048916895,0.71827088,67804.0,67803.0,1.34474643]
[1730048917118,0.83092102,67804.0,67803.0,1.34474643]
[1730048917335,0.72027088,67804.0,67803.0,1.34474643]
[1730048917803,0.71827088,67804.0,67803.0,1.34474643]
[1730048918048,0.82892102,67804.0,67803.0,1.34474643]
[1730048918697,0.97942483,67804.0,67803.0,1.34474643]
[1730048919339,1.00573373,67804.0,67803.0,1.34474643]
[1730048919784,0.89508359,67804.0,67803.0,1.34474643]
[1730048920209,1.0037542,67804.0,67803.0,1.35058781]
[1730048920424,1.0057542,67804.0,67803.0,1.35058781]
[1730048920638,0.89508359,67804.0,67803.0,1.35058781]
[1730048921765,0.89508359,67804.0,67803.0,1.35048359]
[1730048922380,0.74457978,67804.0,67803.0,1.35048359]
[1730048923657,0.74257978,67804.0,67803.0,1.35048359]
[1730048929688,0.74457978,67804.0,67803.0,1.35048359]
[1730048929891,0.74257978,67804.0,67803.0,1.35048359]
[1730048930798,0.74457978,67804.0,67803.0,1.35048359]
[1730048931634,0.74257978,67804.0,67803.0,1.35048359]
[1730048933433,0.74457978,67804.0,67803.0,1.35048359]
[1730048935457,0.71805759,67804.0,67803.0,1.35048359]
[1730048936492,0.78557707,67804.0,67803.0,1.35048359]
[1730048936697,0.78779036,67804.0,67803.0,1.35048359]
[1730048937144,0.78579036,67804.0,67803.0,1.35048359]
[1730048939089,0.78357707,67804.0,67803.0,1.35048359]
[1730048939325,0.80857738,67804.0,67803.0,1.35048359]
[1730048939729,0.71605759,67804.0,67803.0,1.35048359]
[1730048940030,0.81079067,67804.0,67803.0,1.35048359]
[1730048942300,0.80857738,67804.0,67803.0,1.35048359]
[1730048943309,0.81279067,67804.0,67803.0,1.35048359]
[1730048944500,0.81535355,67804.0,67803.0,1.35048359]
[1730048945785,0.87217726,67804.0,67803.0,1.35048359]
[1730048946030,0.87017726,67804.0,67803.0,1.35048359]
[1730048946665,0.77765747,67804.0,67803.0,1.35048359]
[1730048946883,0.77987076,67804.0,67803.0,1.35048359]
[1730048947528,0.87239055,67804.0,67803.0,1.35048359]
[1730048947965,0.77987076,67804.0,67803.0,1.35048359]
[1730048950157,0.68935097,67804.0,67803.0,1.35048359]
[1730048950368,0.68935097,67804.0,67803.0,1.44138359]
[1730048950369,0.79806359,67804.0,67803.0,1.44138359]
[1730048950583,0.68735097,67804.0,67803.0,1.44138359]
[1730048950803,0.68735097,67804.0,67803.0,1.51858359]
[1730048951023,0.77591918,67804.0,67803.0,1.51858359]
[1730048952502,0.68735097,67804.0,67803.0,1.51858359]
[1730048953550,0.77591692,67804.0,67803.0,1.51858359]
[1730048953932,0.68735097,67804.0,67803.0,1.51858359]
[1730048954104,0.68235097,67804.0,67803.0,1.51858359]
[1730048954320,0.6642491,67804.0,67803.0,1.51858359]
[1730048956605,0.75070035,67804.0,67803.0,1.51858359]
[1730048957226,0.74848706,67804.0,67803.0,1.51858359]
[1730048957429,0.77500973,67804.0,67803.0,1.51858359]
[1730048957633,0.86356064,67804.0,67803.0,1.51858359]
[1730048958046,0.77500973,67804.0,67803.0,1.51858359]
[1730048958248,0.85856064,67804.0,67803.0,1.51858359]
[1730048958828,0.86056064,67804.0,67803.0,1.51858359]
[1730048959025,0.86556064,67804.0,67803.0,1.51858359]
[1730048960339,0.86056064,67804.0,67803.0,1.51858359]
[1730048960567,0.85856064,67804.0,67803.0,1.51858359]
[1730048960827,0.83203797,67804.0,67803.0,1.51858359]
[1730048961031,0.83423714,67804.0,67803.0,1.51858359]
[1730048961234,0.83923714,67804.0,67803.0,1.51858359]
[1730048962747,0.84123714,67804.0,67803.0,1.51858359]
[1730048963705,0.75270005,67804.0,67803.0,1.51858359]
[1730048964105,0.84123714,67804.0,67803.0,1.51858359]
[1730048965780,0.83923714,67804.0,67803.0,1.51858359]
[1730048966009,0.83922898,67804.0,67803.0,1.51858359]
[1730048966222,0.84122898,67804.0,67803.0,1.51858359]
[1730048966607,0.75270005,67804.0,67803.0,1.51858359]
[1730048967015,0.84122898,67804.0,67803.0,1.51858359]
[1730048967165,0.75270005,67804.0,67803.0,1.51858359]
[1730048967582,0.75070005,67804.0,67803.0,1.51858359]
[1730048969793,0.75270005,67804.0,67803.0,1.42768359]
[1730048970030,0.84122898,67804.0,67803.0,1.42768359]
[1730048970263,0.75270005,67804.0,67803.0,1.42768359]
[1730048970934,0.88164615,67804.0,67803.0,1.35048359]
[1730048971142,0.87964615,67804.0,67803.0,1.35048359]
[1730048971368,0.7932965,67804.0,67803.0,1.35048359]
[1730048971574,0.90395708,67804.0,67803.0,1.35048359]
[1730048971786,0.90395709,67804.0,67803.0,1.35048359]
[1730048971989,0.7932965,67804.0,67803.0,1.35048359]
[1730048972431,0.90395697,67804.0,67803.0,1.35048359]
[1730048972634,0.7932965,67804.0,67803.0,1.35048359]
[1730048972855,0.90395764,67804.0,67803.0,1.35048359]
[1730048973525,0.89895764,67804.0,67803.0,1.35048359]
[1730048974492,0.7882965,67804.0,67803.0,1.35048359]
[1730048974970,0.77000939,67804.0,67803.0,1.35048359]
[1730048975250,0.86252918,67804.0,67803.0,1.35048359]
[1730048975484,0.86252918,67804.0,67803.0,1.20299859]
[1730048975917,0.86252918,67804.0,67803.0,1.14400459]
[1730048976173,0.86252918,67804.0,67803.0,1.05551359]
[1730048976174,1.06699483,67804.0,67803.0,1.05551359]
[1730048976387,0.95632918,67804.0,67803.0,1.05551359]
[1730048976599,1.06498932,67804.0,67803.0,0.99651959]
[1730048976820,0.95432918,67804.0,67803.0,0.90802859]
[1730048977244,1.06498878,67804.0,67803.0,0.90802859]
[1730048977454,1.09863625,67804.0,67803.0,0.90802859]
[1730048977667,1.09863625,67804.0,67803.0,0.81953759]
[1730048977874,1.17603625,67804.0,67803.0,0.76054359]
[1730048978726,1.06537665,67804.0,67803.0,0.76054359]
[1730048981710,1.06737665,67804.0,67803.0,0.76054359]
[1730048982305,1.04085432,67804.0,67803.0,0.76054359]
[1730048982862,1.04306772,67804.0,67803.0,0.76054359]
[1730048983263,1.04106772,67804.0,67803.0,0.76054359]
[1730048984512,1.00742025,67804.0,67803.0,0.76054359]
[1730048985094,1.00742025,67804.0,67803.0,0.7528558]
[1730048985638,1.00520685,67804.0,67803.0,0.7528558]
[1730048986210,1.00742025,67804.0,67803.0,0.7528558]
[1730048986615,1.04063369,67804.0,67803.0,0.7528558]